Cogmind - Beta 11.2 @@@ ROGUE MODE // 2022.12.25 @ 06:16:14 // Winter2022/Polymind Player: ktur Result: Destroyed by H-66 Slayer with Heavy Assault Rifle Performance ------------- Evolutions (4) 2000 Regions Visited (14) 2800 Robots Destroyed (38) 190 Value Destroyed (1142) 1142 Prototype IDs (16) 320 Alien Tech Used (0) 0 Bonus (7167) 7167 TOTAL SCORE: 13389 Bonus ------- Polymind Skill 6345 Follower Combat Kills 222 Aligned with FarCom 300 Met Data Miner 300 Cogmind --------- Core Integrity 0/850 Matter 0/0 Energy 98/100 System Corruption 0% Temperature Cool (0) Movement Core (50) Location -6/Factory Parts ------- > --- POWER (1) -------- (None) > --- PROPULSION (2) --- (None) > --- UTILITY (3) ------ (None) > --- WEAPON (0) ------- (None) > --- INVENTORY (0) ---- (None) Peak State ------------ > --- POWER ------------ Heavy Deuterium Engine > --- PROPULSION ------- Combat Antigrav System > --- UTILITY ---------- Advanced Launcher Guidance Computer Improved Target Analyzer Experimental Core Analyzer Improved Armor Integrity Analyzer EX Chip 1 EX Chip 1 EX Chip 1 EX Chip 1 EX Chip 1 EX Chip 1 EX Chip 1 EX Chip 1 EX Chip 1 EX Chip 1 EX Chip 2 EX Chip 2 EX Chip 2 EX Chip 2 EX Chip 2 EX Chip 2 EX Chip 2 EX Chip 2 > --- WEAPON ----------- AWS/EX-DEC > --- INVENTORY -------- Deploy-a-Sentry [Rating: 99] Favorites ----------- Power Heavy Deuterium Engine Engine Heavy Deuterium Engine Power Core Light Nuclear Core Propulsion Combat Antigrav System Treads Medium Treads Leg Aluminum Leg Wheel Wheel Hover Unit Combat Antigrav System Utility EX Chip 1 Device Improved Heat Sink Storage Medium Matter Pod Processor Advanced Launcher Guidance Computer Hackware EX Chip 1 Weapon AWS/EX-DEC Energy Gun AWS/EX-DEC Special Melee Weapon Improved Datajack Build | -11 -10 -10 -9 -9 -9 -8 -8 -8 -7 -7 -7 -7 -6 -6 ------- Run | Scr Mat Min Mat Min Exi Min Mat Sto Fac Low Low Dat Pro Fac Slots Evolved . | . . . . . . . . . . . . . . . Power . | . . . . . . . . . . . . . . . Propulsion . | . . . . . . . . . . . . . . . Utility . | . . . . . . . . . . . . . . . Weapon . | . . . . . . . . . . . . . . . Parts Attached . | . . . . . . . . . . . . . . . Power . | . . . . . . . . . . . . . . . Engine . | . . . . . . . . . . . . . . . Core . | . . . . . . . . . . . . . . . Reactor . | . . . . . . . . . . . . . . . Propulsion . | . . . . . . . . . . . . . . . Treads . | . . . . . . . . . . . . . . . Leg . | . . . . . . . . . . . . . . . Wheel . | . . . . . . . . . . . . . . . Hover . | . . . . . . . . . . . . . . . Flight . | . . . . . . . . . . . . . . . Utility . | . . . . . . . . . . . . . . . Device . | . . . . . . . . . . . . . . . Storage . | . . . . . . . . . . . . . . . Processor . | . . . . . . . . . . . . . . . Hackware . | . . . . . . . . . . . . . . . Protection . | . . . . . . . . . . . . . . . Artifact . | . . . . . . . . . . . . . . . Weapon . | . . . . . . . . . . . . . . . Energy Gun . | . . . . . . . . . . . . . . . Energy Cannon . | . . . . . . . . . . . . . . . Ballistic Gun . | . . . . . . . . . . . . . . . Ballistic Cannon . | . . . . . . . . . . . . . . . Launcher . | . . . . . . . . . . . . . . . Special Weapon . | . . . . . . . . . . . . . . . Impact Weapon . | . . . . . . . . . . . . . . . Slashing Weapon . | . . . . . . . . . . . . . . . Piercing Weapon . | . . . . . . . . . . . . . . . Special Melee Weapon . | . . . . . . . . . . . . . . . Unidentified Prototypes . | . . . . . . . . . . . . . . . Parts Lost 8 | . . . 2 . . . . . . 1 . . . 5 Power 2 | . . . 1 . . . . . . . . . . 1 Propulsion 3 | . . . 1 . . . . . . . . . . 2 Utility 2 | . . . . . . . . . . . . . . 2 Weapon 1 | . . . . . . . . . . 1 . . . . Highest Loss Streak 2 | . . . 2 . . . . . . 1 . . . 2 To Critical Strikes . | . . . . . . . . . . . . . . . Average Slot Usage (%) 88 | . . 100 92 40 86 96 96 96 96 95 92 92 92 80 Engine 4 | . . . . 5 13 3 3 3 3 3 3 3 3 11 Core 3 | . . 20 16 . . . . . . . . . . . Leg 9 | . . 40 36 15 26 . . . . . . . . . Wheel 3 | . . . . . . . . . . . . . . 23 Hover 1 | . . . . . . 3 3 3 3 3 3 3 3 . Device 7 | . . 20 20 10 13 . . . . . . . . 16 Processor 8 | . . . . . 3 15 15 15 15 15 15 15 15 2 Hackware 38 | . . . . . 15 69 69 69 69 69 69 69 69 9 Energy Gun 6 | . . 20 20 10 13 3 3 3 3 2 . . . . Special Melee Weapon 1 | . . . . . . . . . . . . . . 8 Naked Turns 354 | . 47 2 . 129 41 . . . . . . . . 135 Heaviest Build 27 | . . 9 9 7 21 21 21 21 21 21 11 11 11 27 Greatest Support 65 | 3 3 20 20 20 20 16 16 16 16 16 16 16 16 65 Greatest Overweight (x) 1 | . . . . . 1 1 1 1 1 1 . . . . Average Overweight (x) . | . . . . . . 1 1 1 1 . . . . . Largest Inventory Capacity 10 | . . 1 1 1 1 1 1 1 1 1 1 1 1 10 Average Capacity 1 | . . . 1 . . 1 1 1 1 1 1 1 1 5 Most Carried 7 | . . . . . 1 1 1 1 1 1 . . . 7 Average Carried . | . . . . . . 1 1 1 1 . . . . . Final Capacity 1 | . . 1 1 1 1 1 1 1 1 1 1 1 1 . Final Carried 1 | . . . . . 1 1 1 1 1 . . . . . Class Distribution -------------------- 56% | Tinkerer 24% | Grunt 8% | Minesweeper 7% | Cogmind Dominant Class ---------------- Cogmind | -10/Materials Grunt | -10/Mines Grunt | -9/Materials Grunt | -9/Mines Grunt | -9/Exiles Tinkerer | -8/Mines Tinkerer | -8/Materials Tinkerer | -8/Storage Tinkerer | -7/Factory Tinkerer | -7/Lower Caves Tinkerer | -7/Lower Caves Tinkerer | -7/Data Miner Tinkerer | -6/Proximity Caves Minesweeper | -6/Factory Resources | -11 -10 -10 -9 -9 -9 -8 -8 -8 -7 -7 -7 -7 -6 -6 ----------- Run | Scr Mat Min Mat Min Exi Min Mat Sto Fac Low Low Dat Pro Fac Matter Collected . | . . . . . . . . . . . . . . . Remotely . | . . . . . . . . . . . . . . . Salvage Created 1217 | . . 73 115 138 . 113 . 131 124 523 . . . . Parts 79 | . . 9 9 6 . 13 . 9 11 22 . . . . Haulers Intercepted . | . . . . . . . . . . . . . . . Recyclers Shooed . | . . . . . . . . . . . . . . . Parts Field Recycled . | . . . . . . . . . . . . . . . Retrieved Matter . | . . . . . . . . . . . . . . . Parts Self-Destructed 9 | . . . . . . . . . . 4 5 . . . Prevented 5 | . . . . . . . . . . 5 . . . . Kills | -11 -10 -10 -9 -9 -9 -8 -8 -8 -7 -7 -7 -7 -6 -6 ------- Run | Scr Mat Min Mat Min Exi Min Mat Sto Fac Low Low Dat Pro Fac Combat Hostiles Destroyed 32 | . . 4 6 2 . 6 . 1 2 11 . . . . Guns 28 | . . 4 5 2 . 6 . 1 2 8 . . . . Classes Destroyed 10 | . . 3 2 1 . . . . 2 2 . . . . Worker 2 | . . 1 . . . 1 . . . . . . . . Watcher 5 | . . . 1 . . . . 2 2 . . . . . Swarmer 15 | . . 3 5 . . 6 . . . 1 . . . . Grunt 5 | . . 1 . 1 . . . 1 . 2 . . . . Brawler 1 | . . . . . . . . . . 1 . . . . Duelist 1 | . . . . 1 . . . . . . . . . . Sentry 1 | . . . 1 . . . . . . . . . . . Programmer 1 | . . . . . . . . . 1 . . . . . Assembled 1 | . . . . . . . . . 1 . . . . . Thug 5 | . . . . . . . . . . 5 . . . . Savage 1 | . . . . . . . . . . 1 . . . . Mutant 1 | . . . . . . . . . . 1 . . . . Best Kill Streak 4 | . . 4 3 2 . 4 . 1 1 3 . . . . Combat Bots Only 4 | . . 4 3 2 . 3 . 1 1 3 . . . . Max Kills in Single Turn 1 | . . 1 1 1 . 1 . 1 1 1 . . . . Gunslinging . | . . . . . . . . . . . . . . . Exploded . | . . . . . . . . . . . . . . . Melee . | . . . . . . . . . . . . . . . Uniques/NPCs Destroyed . | . . . . . . . . . . . . . . . Combat | -11 -10 -10 -9 -9 -9 -8 -8 -8 -7 -7 -7 -7 -6 -6 -------- Run | Scr Mat Min Mat Min Exi Min Mat Sto Fac Low Low Dat Pro Fac Damage Taken 2094 | . . 164 214 75 12 95 . 29 22 280 . . . 1203 Core 1123 | . . 45 42 75 12 20 . . 1 67 . . . 861 Absorbed by Shields . | . . . . . . . . . . . . . . . Core Remaining (%) 86 | 100 . 82 . . . 62 . 100 . . . . 90 . Volleys Fired 50 | . . 19 24 7 . . . . . . . . . . Largest 1 | . . 1 1 1 . . . . . . . . . . Hottest 65 | . . 65 65 40 . . . . . . . . . . Shots Fired 132 | . . 19 24 7 . 18 . 8 21 35 . . . . Gun 132 | . . 19 24 7 . 18 . 8 21 35 . . . . Cannon . | . . . . . . . . . . . . . . . Launcher . | . . . . . . . . . . . . . . . Special . | . . . . . . . . . . . . . . . Kinetic . | . . . . . . . . . . . . . . . Thermal 50 | . . 19 24 7 . . . . . . . . . . Explosive . | . . . . . . . . . . . . . . . Electromagnetic 82 | . . . . . . 18 . 8 21 35 . . . . Robot Hit Streak 14 | . . 4 4 8 . 4 . 4 6 14 . . . . Robot Miss Streak 4 | . . 3 2 . . 4 . 2 3 3 . . . . Penetration Max . | . . . . . . . . . . . . . . . Secondary Targets . | . . . . . . . . . . . . . . . Autonomous 82 | . . . . . . 18 . 8 21 35 . . . . Shots Hit Robots 107 | . . 12 13 7 . 15 . 7 18 34 . . . 1 Core Hits 70 | . . 5 8 4 . 7 . 4 13 29 . . . . Critical Kills . | . . . . . . . . . . . . . . . Critical Parts Destroyed . | . . . . . . . . . . . . . . . Critical Strikes 11 | . . 1 . . . 2 . . 2 6 . . . . Burn 1 | . . 1 . . . . . . . . . . . . Corrupt 10 | . . . . . . 2 . . 2 6 . . . . Melee Attacks 1 | . . . . . . . . . . . . . . 1 Impact . | . . . . . . . . . . . . . . . Slashing . | . . . . . . . . . . . . . . . Piercing . | . . . . . . . . . . . . . . . Sneak Attacks 1 | . . . . . . . . . . . . . . 1 Combat Hostiles . | . . . . . . . . . . . . . . . Follow-up Attacks . | . . . . . . . . . . . . . . . Damage Inflicted 1989 | . . 187 241 85 . 277 . 143 199 857 . . . . Guns 1975 | . . 187 227 85 . 277 . 143 199 857 . . . . Cannons . | . . . . . . . . . . . . . . . Explosions . | . . . . . . . . . . . . . . . Melee . | . . . . . . . . . . . . . . . Ramming 14 | . . . 14 . . . . . . . . . . . Kinetic . | . . . . . . . . . . . . . . . Thermal 499 | . . 187 227 85 . . . . . . . . . . Explosive . | . . . . . . . . . . . . . . . Electromagnetic 1476 | . . . . . . 277 . 143 199 857 . . . . Impact . | . . . . . . . . . . . . . . . Slashing . | . . . . . . . . . . . . . . . Piercing . | . . . . . . . . . . . . . . . Highest Corruption . | . . . . . . . . . . . . . . . Average Corruption . | . . . . . . . . . . . . . . . Corruption Purged . | . . . . . . . . . . . . . . . Corruption Blocked . | . . . . . . . . . . . . . . . Overload Shots . | . . . . . . . . . . . . . . . Overflow Damage . | . . . . . . . . . . . . . . . Projectiles . | . . . . . . . . . . . . . . . Explosions . | . . . . . . . . . . . . . . . Melee . | . . . . . . . . . . . . . . . Knockbacks . | . . . . . . . . . . . . . . . Impact . | . . . . . . . . . . . . . . . Kinetic . | . . . . . . . . . . . . . . . Secondary . | . . . . . . . . . . . . . . . Self-Inflicted Damage . | . . . . . . . . . . . . . . . Shots . | . . . . . . . . . . . . . . . Rammed 1 | . . . . . . . . . . . . . . 1 Targets Rammed 7 | . . . 5 1 . . . . . . . . . 1 Kicked 6 | . . . 5 1 . . . . . . . . . . Crushed . | . . . . . . . . . . . . . . . Highest Temperature 40 | . . 40 . . . . . 2 . . . . . 21 Average Temperature 16 | . . 32 . . . . . 2 . . . . . 9 Received Heat Transfer 260 | . . 21 . 29 6 . . 18 . 45 . . . 141 Siege Activations . | . . . . . . . . . . . . . . . Robots Corrupted 3 | . . . . . . . . . . 3 . . . . Combat Hostiles 3 | . . . . . . . . . . 3 . . . . Parts Fried 7 | . . . . . . . . . 1 6 . . . . Impact Corruptions . | . . . . . . . . . . . . . . . Robots Melted 1 | . . . 1 . . . . . . . . . . . Combat Hostiles 1 | . . . 1 . . . . . . . . . . . Parts Melted 8 | . . 2 5 1 . . . . . . . . . . Heat Transferred 1248 | . . 518 555 175 . . . . . . . . . . Parts Sabotaged . | . . . . . . . . . . . . . . . Parts Stolen . | . . . . . . . . . . . . . . . Parts Stripped . | . . . . . . . . . . . . . . . Power Chain Reactions . | . . . . . . . . . . . . . . . Missiles Intercepted . | . . . . . . . . . . . . . . . Alert | -11 -10 -10 -9 -9 -9 -8 -8 -8 -7 -7 -7 -7 -6 -6 ------- Run | Scr Mat Min Mat Min Exi Min Mat Sto Fac Low Low Dat Pro Fac Peak Influence 305 | . 30 121 305 158 . 190 99 270 246 . . . . 169 Initial 122 | . . 11 46 48 . . 74 41 122 . . . . . Average 104 | . 9 110 185 72 . 47 95 205 109 . . . . 42 Maximum Alert Level 1 | . . . 1 . . . . 1 1 . . . . . Low Security (%) 85 | 100 100 100 52 100 . 100 100 19 93 . . . . 100 Level 1 14 | . . . 47 . . . . 80 6 . . . . . Level 2 . | . . . . . . . . . . . . . . . Level 3 . | . . . . . . . . . . . . . . . Level 4 . | . . . . . . . . . . . . . . . Level 5 . | . . . . . . . . . . . . . . . High Security . | . . . . . . . . . . . . . . . Max Security . | . . . . . . . . . . . . . . . Squads Dispatched 20 | . . . 1 . . . 1 1 11 . . . . 6 Investigation 11 | . . . . . . . . . 7 . . . . 4 Extermination 1 | . . . . . . . . . 1 . . . . . Reinforcement 7 | . . . 1 . . . 1 1 3 . . . . 1 Assault 1 | . . . . . . . . . . . . . . 1 Garrison . | . . . . . . . . . . . . . . . Intercept . | . . . . . . . . . . . . . . . Searches Triggered . | . . . . . . . . . . . . . . . Data Miner Redirects 4 | . . . . . . . . . . . . . . 4 Construction Impeded . | . . . . . . . . . . . . . . . Haulers Reinforced 2 | . . . . . . . . . 2 . . . . . Active Scanning Responses . | . . . . . . . . . . . . . . . Cargo Convoy Interrupts . | . . . . . . . . . . . . . . . Stealth | -11 -10 -10 -9 -9 -9 -8 -8 -8 -7 -7 -7 -7 -6 -6 --------- Run | Scr Mat Min Mat Min Exi Min Mat Sto Fac Low Low Dat Pro Fac Distress Signals 7 | . 1 . 1 . . . . 2 3 . . . . . Communications Jammed . | . . . . . . . . . . . . . . . Distress Signals . | . . . . . . . . . . . . . . . Times Spotted 103 | . 2 6 18 22 1 7 1 6 7 14 . . . 19 Peak Tracking Total 9 | . 3 3 5 7 1 3 . 2 3 3 . . . 9 Tactical Retreats 13 | . 1 . . 6 . 2 . 1 . 1 . . . 2 Traps | -11 -10 -10 -9 -9 -9 -8 -8 -8 -7 -7 -7 -7 -6 -6 ------- Run | Scr Mat Min Mat Min Exi Min Mat Sto Fac Low Low Dat Pro Fac Traps Triggered 1 | . . . . . . . . . . . . . . 1 Indirectly . | . . . . . . . . . . . . . . . Trap Hack Attempts 74 | . . . . . . . . . . . . . . 74 Triggered . | . . . . . . . . . . . . . . . Disarmed . | . . . . . . . . . . . . . . . Reprogrammed 12 | . . . 6 . . . . . 2 . . . . 4 Reused 2 | . . . . . . . . . . . . . . 2 Traps Extracted . | . . . . . . . . . . . . . . . Installed . | . . . . . . . . . . . . . . . Triggered 12 | . . . . . . . 1 1 5 . . . . 5 Machines | -11 -10 -10 -9 -9 -9 -8 -8 -8 -7 -7 -7 -7 -6 -6 ---------- Run | Scr Mat Min Mat Min Exi Min Mat Sto Fac Low Low Dat Pro Fac Machines Disabled 4 | . . . . . . . . 1 3 . . . . . Max in Single Turn 2 | . . . . . . . . . 2 . . . . . Garrison Access 1 | . . . . . . . . . . . . . . 1 Machines Sabotaged 1 | . . . . . . . . . 1 . . . . . Garrisons Compromised . | . . . . . . . . . . . . . . . Overloaded Fab Kills . | . . . . . . . . . . . . . . . Hacking | -11 -10 -10 -9 -9 -9 -8 -8 -8 -7 -7 -7 -7 -6 -6 --------- Run | Scr Mat Min Mat Min Exi Min Mat Sto Fac Low Low Dat Pro Fac Machines Accessed 20 | . . . 4 . 1 1 1 1 5 . . 4 . 3 Terminals 10 | . . . 4 . . 1 1 1 2 . . . . 1 Fabricators 2 | . . . . . . . . . 1 . . . . 1 Repair Stations . | . . . . . . . . . . . . . . . Recycling Units 1 | . . . . . . . . . 1 . . . . . Scanalyzers . | . . . . . . . . . . . . . . . Garrison Access 2 | . . . . . . . . . 1 . . . . 1 Total Hacks 84 | . . . 9 . 1 3 7 4 16 . . 33 . 11 Successful 73 | . . . 1 . 1 3 7 4 15 . . 33 . 9 Failed 11 | . . . 8 . . . . . 1 . . . . 2 Catastrophic 3 | . . . 2 . . . . . . . . . . 1 Database Lockouts . | . . . . . . . . . . . . . . . Manual 38 | . . . 6 . . 2 7 4 12 . . . . 7 Terminals 34 | . . . 9 . . 3 7 4 7 . . . . 4 Fabricators 10 | . . . . . . . . . 7 . . . . 3 Repair Stations . | . . . . . . . . . . . . . . . Recycling Units 1 | . . . . . . . . . 1 . . . . . Scanalyzers . | . . . . . . . . . . . . . . . Garrison Access 5 | . . . . . . . . . 1 . . . . 4 Terminal Hacks 52 | . . . 1 . 1 3 3 4 5 . . 33 . 2 Record 12 | . . . . . 1 . . . . . . 11 . . Part Schematic 11 | . . . . . . . . . . . . 11 . . Robot Schematic 10 | . . . . . . 1 1 . . . . 8 . . Prototype ID Bank 4 | . . . . . . . . . 1 . . 3 . . Level Access Points 2 | . . . . . . 1 . 1 . . . . . . Branch Access Points 3 | . . . . . . . . 1 1 . . . . 1 Machine Index 1 | . . . . . . . . . 1 . . . . . Reprogram Traps 3 | . . . 1 . . . . . 2 . . . . . Patrol Status 3 | . . . . . . 1 1 . . . . . . 1 Recall Reinforcements 2 | . . . . . . . 1 1 . . . . . . Zone Layout 1 | . . . . . . . . 1 . . . . . . Fabricator Hacks 4 | . . . . . . . . . 2 . . . . 2 Load Schematic 2 | . . . . . . . . . 1 . . . . 1 Build 2 | . . . . . . . . . 1 . . . . 1 Repair Station Hacks . | . . . . . . . . . . . . . . . Recycling Unit Hacks . | . . . . . . . . . . . . . . . Scanalyzer . | . . . . . . . . . . . . . . . Garrison Access Hacks . | . . . . . . . . . . . . . . . Unauthorized Hacks 17 | . . . . . . . 4 . 8 . . . . 5 Terminals 5 | . . . . . . . 4 . 1 . . . . . Track 1 | . . . . . . . 1 . . . . . . . Botnet 1 | . . . . . . . 1 . . . . . . . Disrupt 1 | . . . . . . . 1 . . . . . . . Operators 1 | . . . . . . . 1 . . . . . . . Sabotage 1 | . . . . . . . . . 1 . . . . . Fabricators 6 | . . . . . . . . . 5 . . . . 1 Report 1 | . . . . . . . . . 1 . . . . . Prioritize 2 | . . . . . . . . . 1 . . . . 1 Liberate 1 | . . . . . . . . . 1 . . . . . Fabnet 1 | . . . . . . . . . 1 . . . . . Haulers 1 | . . . . . . . . . 1 . . . . . Repair Stations . | . . . . . . . . . . . . . . . Recycling Units 1 | . . . . . . . . . 1 . . . . . Tunnel 1 | . . . . . . . . . 1 . . . . . Scanalyzers . | . . . . . . . . . . . . . . . Garrison Access 5 | . . . . . . . . . 1 . . . . 4 Broadcast 1 | . . . . . . . . . . . . . . 1 Reprogram 2 | . . . . . . . . . 1 . . . . 1 Intercept 1 | . . . . . . . . . . . . . . 1 Watchers 1 | . . . . . . . . . . . . . . 1 Data Cores Recovered . | . . . . . . . . . . . . . . . Used . | . . . . . . . . . . . . . . . Hacking Detections 10 | . . . 4 . . . 1 1 2 . . . . 2 Full Trace Events 4 | . . . 1 . . . . . 1 . . . . 2 Feedback Events . | . . . . . . . . . . . . . . . Feedback Blocked . | . . . . . . . . . . . . . . . Robot Schematics Acquired 10 | . . . . . . 1 1 . . . . 8 . . Robots Built 3 | . . . . . . . . . 2 . . . . 1 Authchips . | . . . . . . . . . . . . . . . Time 67 | . . . . . . . . . 29 . . . . 38 Total Robot Build Rating 11 | . . . . . . . . . 6 . . . . 5 Part Schematics Acquired 11 | . . . . . . . . . . . . 11 . . Parts Built . | . . . . . . . . . . . . . . . Authchips . | . . . . . . . . . . . . . . . Time . | . . . . . . . . . . . . . . . Total Part Build Rating . | . . . . . . . . . . . . . . . Parts Repaired . | . . . . . . . . . . . . . . . Time . | . . . . . . . . . . . . . . . Parts Recycled . | . . . . . . . . . . . . . . . Recycled Matter . | . . . . . . . . . . . . . . . Retrieved Matter . | . . . . . . . . . . . . . . . Retrieved Components . | . . . . . . . . . . . . . . . Parts Scanalyzed . | . . . . . . . . . . . . . . . Part Schematics Acquired . | . . . . . . . . . . . . . . . Parts Damaged . | . . . . . . . . . . . . . . . Bothacking | -11 -10 -10 -9 -9 -9 -8 -8 -8 -7 -7 -7 -7 -6 -6 ------------ Run | Scr Mat Min Mat Min Exi Min Mat Sto Fac Low Low Dat Pro Fac Used RIF Installer . | . . . . . . . . . . . . . . . Robots Hacked 4 | . . 1 . 1 . . . . . . . . . 2 Non-combat 2 | . . . . . . . . . . . . . . 2 Combat 2 | . . 1 . 1 . . . . . . . . . . Robot Hacks Applied 6 | . . 1 . 1 . . . . . . . . . 4 find_fabricator 1 | . . . . . . . . . . . . . . 1 find_dsf 1 | . . . . . . . . . . . . . . 1 locate_stockpiles 1 | . . . . . . . . . . . . . . 1 find_recycling 1 | . . . . . . . . . . . . . . 1 find_shortcuts 2 | . . 1 . 1 . . . . . . . . . . Relay Couplers Released 2 | . . . . . . . . . . . . . . 2 Machine Destruction 2 | . . . . . . . . . . . . . . 2 Fabnet Peak Effective % 3 | . . . . . . . . . . . . . 3 3 Robots Rewired . | . . . . . . . . . . . . . . . Allies Hacked . | . . . . . . . . . . . . . . . Hacks Repelled . | . . . . . . . . . . . . . . . Allies | -11 -10 -10 -9 -9 -9 -8 -8 -8 -7 -7 -7 -7 -6 -6 -------- Run | Scr Mat Min Mat Min Exi Min Mat Sto Fac Low Low Dat Pro Fac Total Allies 14 | . . 5 . . . . . 2 2 . . . . 5 Largest Group 5 | . . 5 5 . . . . 2 2 . . . . 3 Highest-Rated Group 87 | . . 85 85 . . . . 62 42 . . . . 87 Highest-Rated Ally 31 | . . 31 31 . . . . 31 21 . . . . 29 Total Orders . | . . . . . . . . . . . . . . . Ally Attacks 83 | . . . 36 . . . . 30 11 4 . . . 2 Total Damage 1196 | . . . 363 . . . . 421 231 162 . . . 19 Kills 21 | . . . 8 . . . . 7 3 2 . . . 1 Allies Corrupted . | . . . . . . . . . . . . . . . Allies Melted . | . . . . . . . . . . . . . . . Turrets Deployed 1 | . . . . . . . . . . 1 . . . . Intel | -11 -10 -10 -9 -9 -9 -8 -8 -8 -7 -7 -7 -7 -6 -6 ------- Run | Scr Mat Min Mat Min Exi Min Mat Sto Fac Low Low Dat Pro Fac Robot Analysis Total 5 | . . 1 . 1 . . . . . . . . . 3 Derelict Logs Recovered 3 | . . 1 . 1 . . . . . . . . 1 . Drone Launches . | . . . . . . . . . . . . . . . Drone Recoveries . | . . . . . . . . . . . . . . . Exploration | -11 -10 -10 -9 -9 -9 -8 -8 -8 -7 -7 -7 -7 -6 -6 ------------- Run | Scr Mat Min Mat Min Exi Min Mat Sto Fac Low Low Dat Pro Fac Turns Passed 4972 | 9 47 384 508 259 318 220 85 292 985 613 224 65 125 838 Spaces Moved 4225 | 18 94 284 377 278 300 142 50 180 630 434 280 82 156 920 Core 645 | 18 94 2 . 181 80 . . . . . . . . 270 Treads 25 | . . . . . . . . . . . . . . 25 Legs 928 | . . 282 377 97 172 . . . . . . . . . Wheels 515 | . . . . . . . . . . . . . . 515 Hover 2112 | . . . . . 48 142 50 180 630 434 280 82 156 110 Flight . | . . . . . . . . . . . . . . . Fastest Speed 50 | 50 50 50 120 50 50 150 150 150 150 80 80 80 80 50 Average Speed 107 | 50 50 119 120 74 106 150 150 150 150 136 80 80 80 73 Slowest Speed 160 | 50 50 120 120 120 150 150 150 150 150 150 80 80 80 160 Overloaded Moves . | . . . . . . . . . . . . . . . Propulsion Burnouts . | . . . . . . . . . . . . . . . Robots Hopped 1 | . . . . . . . . . . . . . . 1 Cave-ins Triggered . | . . . . . . . . . . . . . . . Exploration Rate (%) 39 | 3 27 78 41 47 60 39 7 37 16 62 44 69 39 23 Regions Visited 14 Branch Regions 9 Pre-discovered Areas 4 | . . . . 1 1 . . . 1 . . 1 . . Known Exits Taken 3 | . . . . . . 1 . 1 1 . . . . . Unknown Exits Taken 11 | 1 1 1 1 1 1 . 1 . . 1 1 1 1 . Scrap Searched 6 | . . 1 . 1 . 1 . . . 3 . . . . Spaces Dug . | . . . . . . . . . . . . . . . Terrain Destroyed 14 | . . . . . . . . . 14 . . . . . Melee . | . . . . . . . . . . . . . . . Projectile . | . . . . . . . . . . . . . . . AOE 14 | . . . . . . . . . 14 . . . . . Terrain Rammed . | . . . . . . . . . . . . . . . Walls Destroyed . | . . . . . . . . . . . . . . . Machines Disabled . | . . . . . . . . . . . . . . . Actions | -11 -10 -10 -9 -9 -9 -8 -8 -8 -7 -7 -7 -7 -6 -6 --------- Run | Scr Mat Min Mat Min Exi Min Mat Sto Fac Low Low Dat Pro Fac Total 4582 | 17 93 309 407 323 300 149 60 202 670 455 279 81 155 1082 Wait 238 | . . 7 2 38 1 8 11 23 40 21 . . . 87 Move 4209 | 17 93 283 376 277 299 141 49 179 629 433 279 81 155 918 Hop 1 | . . . . . . . . . . . . . . 1 Pick Up . | . . . . . . . . . . . . . . . Fast Attach . | . . . . . . . . . . . . . . . Attach . | . . . . . . . . . . . . . . . Detach . | . . . . . . . . . . . . . . . Swap . | . . . . . . . . . . . . . . . Drop 1 | . . . . . . . . . . 1 . . . . Fire 50 | . . 19 24 7 . . . . . . . . . . Melee 1 | . . . . . . . . . . . . . . 1 Ram 1 | . . . . . . . . . . . . . . 1 Kick 6 | . . . 5 1 . . . . . . . . . . Crush . | . . . . . . . . . . . . . . . Escape Stasis . | . . . . . . . . . . . . . . . Rewire 1 | . . . . . . . . . 1 . . . . . Trap 74 | . . . . . . . . . . . . . . 74 Miscellaneous . | . . . . . . . . . . . . . . . Route ------- -11/Scrapyard -10/Materials (discovered 2 exits: *Mat / [*Min]) -10/Mines -9/Materials (discovered 2 exits: *Mat / [*Min]) -9/Mines -9/Exiles -8/Mines (discovered 2 exits: *Mat x2) -8/Materials -8/Storage (discovered 2 exits: *Fac / Rec) -7/Factory (discovered 2 exits: *Low x2) -7/Lower Caves -7/Lower Caves -7/Data Miner -6/Proximity Caves -6/Factory (discovered 2 exits: Low x2) History --------- Turn | Location | Event 3 | -11/Scrapyard | Discovered new exit (range 15) 10 | -11/Scrapyard | Entered Materials 42 | -10/Materials | Discovered new exit (range 16) 55 | -10/Materials | Discovered new exit (range 6) 57 | -10/Materials | Entered Mines 192 | -10/Mines | Learned 2 Materials zone layouts 225 | -10/Mines | Assisted by bots powering up and referring to "LRC-V3" 424 | -10/Mines | Discovered new exit (range 9) 441 | -10/Mines | Entered Materials 441 | -9/Materials | Accompanied by 5 allies 446 | -9/Materials | Led the pair of lost Derelicts to an unsafe place 621 | -9/Materials | Discovered new exit (range 11) 943 | -9/Materials | Discovered new exit (range 6) 949 | -9/Materials | Entered Mines 992 | -9/Mines | Assembled infested the area 1056 | -9/Mines | Met 8R-AWN 1204 | -9/Mines | Discovered new exit (range 5) 1208 | -9/Mines | Entered Exiles 1237 | -9/Exiles | Welcomed by 8R-AWN 1259 | -9/Exiles | Met EX-HEX 1306 | -9/Exiles | Met EX-DEC 1310 | -9/Exiles | Learned location of Zion (-6) 1336 | -9/Exiles | Met EX-BIN 1352 | -9/Exiles | Aligned with FarCom system 1354 | -9/Exiles | Given EX-Vault access code 1402 | -9/Exiles | Learned about 8R-AWN's background 1456 | -9/Exiles | Took control of EX-DEC (ally) 1511 | -9/Exiles | Discovered new exit (range 11) 1526 | -9/Exiles | Left Exiles lab with Deploy-a-Sentry 1526 | -9/Exiles | Entered Mines 1531 | -8/Mines | Identified exit to Materials 1746 | -8/Mines | Entered Materials 1825 | -8/Materials | Discovered new exit (range 4) 1831 | -8/Materials | Entered Storage 1899 | -8/Storage | Identified exit to Recycling 1929 | -8/Storage | Identified exit to Factory 2123 | -8/Storage | Entered Factory 2472 | -7/Factory | Fabricated H-55 Commando (x2) 2545 | -7/Factory | Discovered new exit (range 11) 2781 | -7/Factory | Identified exit to Lower Caves 3108 | -7/Factory | Entered Lower Caves 3574 | -7/Lower Caves | Attacked by a faux Warlord 3655 | -7/Lower Caves | DAS Turret deployed 3710 | -7/Lower Caves | Discovered new exit (range 15) 3721 | -7/Lower Caves | Entered another Lower Caves area 3734 | -7/Lower Caves | Spotted B-75 Beast 3937 | -7/Lower Caves | Discovered new exit (range 10) 3945 | -7/Lower Caves | Entered Data Miner 3945 | -7/Data Miner | Discovered new exit (range 6) 3961 | -7/Data Miner | Met Data Miner 3976 | -7/Data Miner | Learned location of Section 7 (-2) 3976 | -7/Data Miner | Acquired the access code to Warlord's prototype stash 3989 | -7/Data Miner | Received God Mode back door access code from Data Miner 4010 | -7/Data Miner | Entered Proximity Caves 4067 | -6/Proximity Caves | Learned 8 Factory zone layouts 4127 | -6/Proximity Caves | Discovered new exit (range 10) 4135 | -6/Proximity Caves | Entered Factory 4193 | -6/Factory | Incoming investigation squad redirected 4211 | -6/Factory | Incoming assault squad redirected 4228 | -6/Factory | Incoming investigation squad redirected 4247 | -6/Factory | Fabricated M-22 Extractor (x1) 4354 | -6/Factory | Identified exit to Lower Caves 4837 | -6/Factory | Core integrity fell below 50% 4854 | -6/Factory | Incoming investigation squad redirected 4898 | -6/Factory | Spotted B-75 Beast 4930 | -6/Factory | Core integrity fell below 20% 4973 | -6/Factory | Destroyed by H-66 Slayer with Heavy Assault Rifle Last Messages --------------- 04827_ Slug penetrates Fusion Modulator. 04830_ Slug penetrates Wall. 04830_ Slug penetrates Neutrino Reactor. 04832_ Slug penetrates Wall. 04833_ Penetrated by Slug. 04836_ Slug penetrates Neutrino Reactor. 04836_ Slug penetrates Wall. 04848_ Took control of A-15 Conveyor. 04848_ Extracted analysis data for A-15 Conveyor. 04854_ ALERT: Higher priority target reported, redirecting investigation. 04887_ Released control of A-15 Conveyor. 04888_ K-01 Serf cleans the Construction Platform. 04906_ Nuclear Reactor explodes. 04929_ Slug penetrates Wall. 04930_ K-01 Serf destroyed. 04932_ Slug penetrates Wall. 04934_ Penetrated by Slug. 04962_ Triggered Blade Trap. 04962_ Massive razor-sharp blades shoot up from within the floor. 04973_ Penetrated by Slug. Map ----- +----------------------------------------------------+ | #??????????????????????????# # | | #??????????????????????????# # | | #??????????????????????????######## | | #?????????????????????????????????# | | "" """ #?????????????????????????????????# | | "" """"" #???????????????????????##########??## | | "" """"" #????????#??????????????# ! ?? | | #?????? ?? ???????????# = | | "" """ #????? ? ????#??????# | | "" """"" #???? ?? ? ??+ """ """ | | "" """"" #??? ??? # """ """ | | ### ?? # """ """ | | / ?# ?+ "" "" * | | % ## ?# ??# "" "" * | | #??? ???# ???# ! | | """ """ #???h?? ???# ??lh+ | | """ """ #?????????????# h #?#####+#####+##+## | | =! """ """ #?????h???????# gg#?# + #? | | !! #?????????????# #?#"" # #? | | ##########+#### ###"" # #? | | ##"" # #? | | #### ##T # #? | | ???# ##"" # #? | | ???# ##"" # #? | | ???# ##"" # #? | | ???# @ ## # ## | | ???# #####+### | | ???# ############## | | ???# ?????????????# | | ???# ?????????????# | | ???# ?????????????# | | ???# ?????????????# | | ???# ?????????????############### | | ???? ???????????????????????????########## | | ??????##+####????????????????????????????????????? | | ?????????????????????????????????????????????????? | | ?????????????????????????????????????????????????? | | ?????????????????????????????????????????????????? | | ?????????????????????????????????????????????????? | | ?????????????????????????????????????????????????? | | ?????????????????????????????????????????????????? | | ?????????????????????????????????????????????????? | | ?????????????????????????????????????????????????? | | ?????????????????????????????????????????????????? | | ?????????????????????????????????????????????????? | | ?????????????????????????????????????????????????? | | ?????????????????????????????????????????????????? | | ?????????????????????????????????????????????????? | | ?????????????????????????????????????????????????? | | ?????????????????????????????????????????????????? | +----------------------------------------------------+ Best States ------------- Heat Dissipation 43 Energy Generation 23 Energy Capacity 235 Matter Capacity 100 Sight Range 16 Terrain Scan Density 10 Additional Mass Support 9 Resistance: EX 50 Resistance: EM 90 Evasion (%) 55 Launcher Accuracy 40 Target Analysis 6 Core Analysis 8 Armor Integrity Analysis 40 Recoil Reduction 2 Offensive Hacking 70 Defensive Hacking 56 Trap Extractor Capacity 6 Item Schematics ----------------- Combat Drone Bay | -7/Data Miner | Free Lgt. Regenerative Plating | -7/Data Miner | Free Cld. Aerolev Unit | -7/Data Miner | Free Gravity Neutralizer | -7/Data Miner | Free Force Rifle | -7/Data Miner | Free Nuclear Pulse Array | -7/Data Miner | Free Recoil Nullifier | -7/Data Miner | Free Enh. Gauss Cannon | -7/Data Miner | Free Focal Shield | -7/Data Miner | Free Adv. System Shield | -7/Data Miner | Free Myomer Leg | -7/Data Miner | Free Robot Schematics ------------------ Y-45 Defender | -8/Mines | Hacked H-55 Commando | -8/Materials | Hacked H-66 Slayer | -7/Data Miner | Free W-25 Informer | -7/Data Miner | Free O-24 Administrator | -7/Data Miner | Free A-15 Conveyor | -7/Data Miner | Free L-41 Fighter | -7/Data Miner | Free B-60 Warrior | -7/Data Miner | Free S-27 Virus | -7/Data Miner | Free M-22 Extractor | -7/Data Miner | Free Fabricated ------------ H-55 Commando | x2 | -7/Factory M-22 Extractor | x1 | -6/Factory Alien Tech Used ----------------- None Achievements -------------- None Challenges ------------ None Polymind | -11 -10 -10 -9 -9 -9 -8 -8 -8 -7 -7 -7 -7 -6 -6 ---------- Run | Scr Mat Min Mat Min Exi Min Mat Sto Fac Low Low Dat Pro Fac Robots Controlled 6 | . . 1 . 1 1 . . . . . . . . 3 Combat Hostiles 2 | . . 1 . 1 . . . . . . . . . . Allies 2 | . . . . . 1 . . . . . . . . 1 Classes Controlled 5 | . . 1 . . 1 . . . . . . . . 3 Average Host Suspicion 65 | . . 100 94 61 . 58 13 51 91 53 . . . 79 Unsuspicious Activity 326 | . . . . . 16 . . . 20 230 . . . 60 Returns to Shadow 1 | . . . . . . . . . . 1 . . . . Fuzzy Dispatches . | . . . . . . . . . . . . . . . Protomatter Created 650 | . . 9 49 138 . 9 . 87 121 139 65 . . 33 Used 90 | . . 30 . 15 33 . . . . . . . . 12 Decayed 319 | . . . 18 62 . 4 . 87 99 . 49 . . . Highest Spend 33 | . . 30 . 15 33 . . . . . . . . 5 Top 5 Hosts by Kills: EX-DEC (-9/Exiles: 20) G-47 Trooper (-10/Mines: 10) Game ------ Seed BackupDecoderRouter Manual? 0 Play Time 00:27:19 Cumulative 614.1 hours Start 2022.12.25 @ 05:47:43 End 2022.12.25 @ 06:16:14 Sessions 1 Manual Loads 0 Difficulty Rogue Special Mode Winter2022/Polymind Game No. 570 Rogue 570 Adventurer 0 Explorer 0 Win Type - Total 28 Types 14/2/7/2/0/0/1/1/1 Lore% 94 Gallery% 94 Achievement% 80 Wizard Run 0 Options --------- ASCII 0 Keyboard 0 Movement Arrows Keybinds 0 Fullscreen 1 Font 18/Smallcaps Map View 76x50 Tactical HUD 1 Map Filters NONE Filters NONE Steam 1 RUN: ab602ff9-bc59-4e75-8356-a564a0359ac2